fUSD/lending_fUSD_20250331
["ID","MTS","AMOUNT","RATE_DAILY","PERIOD"]
[356907668,1743415840500,-957.47,0.0004971,120]
[356907669,1743415840511,-500.0,0.0004971,120]
[356907670,1743415840520,-80656.66,0.0004971,7]
[356907671,1743415840537,-1873.16,0.0004971,120]
[356907672,1743415840553,-500.0,0.0004971,120]
[356907673,1743415840563,-500.0,0.0004971,120]
[356907674,1743415840573,-500.0,0.0004971,120]
[356907675,1743415840583,-500.0,0.0004971,120]
[356907676,1743415840592,-582.38456505,0.0004971,120]
[356907677,1743415840602,-575.9,0.0004971,120]
[356907678,1743415840612,-500.0,0.0004971,120]
[356907679,1743415840622,-500.0,0.0004971,7]
[356907680,1743415840632,-1273.29,0.0004971,120]
[356907681,1743415840641,-500.0,0.0004971,120]
[356907682,1743415840651,-500.0,0.0004971,120]
[356907683,1743415840661,-835.21,0.0004971,120]
[356907684,1743415840672,-1365.31,0.0004971,120]
[356907685,1743415840682,-1012.93,0.0004971,120]
[356907686,1743415840692,-2569.82,0.0004971,2]
[356907687,1743415840702,-500.0,0.0004971,120]
[356907688,1743415840712,-500.0,0.0004971,120]
[356907689,1743415840721,-500.0,0.0004971,120]
[356907690,1743415840731,-500.0,0.0004971,120]
[356907691,1743415840740,-500.0,0.0004971,2]
[356907692,1743415840749,-393.24,0.0004971,120]
[356907693,1743415840759,-150.0,0.00049788,7]
[356907694,1743415840769,-217.90250122,0.00049807,7]
[356907695,1743415840780,-5000.0,0.00049884,120]
[356907696,1743415840789,-5499.15983828,0.00049945,4]
[356907701,1743415842562,-1862.98203626,0.00049945,4]
[356907702,1743415842572,-1962.85556374,0.00049964,4]
[356907703,1743415842584,-5399.2863108,0.00049964,4]
[356907704,1743415842593,-150.0,0.00049974,7]
[356907705,1743415842603,-44172.8512472,0.00049974,4]
[356907706,1743415842613,-10086.9094157,0.00049974,4]
[356907707,1743415842622,-7362.14187454,0.00049975,4]
[356907708,1743415842631,-22086.4256236,0.0004998,4]
[356907709,1743415842641,-4034.76376628,0.0004998,4]
[356907710,1743415842650,-1007.45056314,0.00049984,2]
[356907711,1743415842659,-500.0,0.00049984,120]
[356907712,1743415842668,-957.47,0.00049984,120]
[356907713,1743415842677,-500.0,0.00049984,120]
[356907714,1743415842687,-80656.66,0.00049984,7]
[356907715,1743415842696,-1873.16,0.00049984,120]
[356907716,1743415842706,-500.0,0.00049984,120]
[356907717,1743415842715,-500.0,0.00049984,120]
[356907718,1743415842724,-500.0,0.00049984,120]
[356907719,1743415842734,-500.0,0.00049984,120]
[356907720,1743415842743,-575.9,0.00049984,120]
[356907721,1743415842752,-500.0,0.00049984,120]
[356907722,1743415842761,-355.08979196,0.00049984,7]
[356907723,1743415842770,-1273.29,0.00049984,120]
[356907724,1743415842780,-500.0,0.00049984,120]
[356907725,1743415842790,-500.0,0.00049984,120]
[356907726,1743415842799,-835.21,0.00049984,120]
[356907727,1743415842809,-1365.31,0.00049984,120]
[356907728,1743415842819,-1012.93,0.00049984,120]
[356907729,1743415842828,-2569.82,0.00049984,2]
[356907730,1743415842838,-500.0,0.00049984,120]
[356907731,1743415842847,-500.0,0.00049984,120]
[356907732,1743415842857,-196.04657435,0.00049984,120]
[356907733,1743415842867,-500.0,0.00049984,120]
[356907734,1743415842876,-500.0,0.00049984,2]
[356907736,1743415842886,-22086.4256236,0.0004999,4]
[356907738,1743415842896,-4034.76376628,0.0004999,4]
[356907740,1743415842905,-1543.0,0.0004999,7]
[356907742,1743415842915,-7362.14187454,0.0004999,4]
[356907744,1743415842924,-36312.8738965,0.0004999,4]
[356907746,1743415842933,-150.0,0.00049999,120]
[356907748,1743415842943,-50000.0,0.0005,50]
[356907750,1743415842952,-457.29241128,0.0005,61]
[356907752,1743415842961,-15356.6869834,0.0005,41]
[356907754,1743415842971,-348031.05065865,0.0005,120]
[356907756,1743415842981,-1361.0,0.0005,14]
[356907758,1743415842991,-325.27612106,0.0005,30]
[356907761,1743415843000,-316.8089124,0.0005,120]
[356907762,1743415843011,-2220.75496568,0.0005,2]
[356907764,1743415843021,-173.53,0.00050036,2]
[356907766,1743415843031,-500.0,0.00050136,60]
[356907768,1743415843042,-1000.0,0.00050137,20]
[356907770,1743415843051,-2017.38188314,0.00050149,4]
[356907773,1743415843061,-159.48,0.000502,48]
[356907775,1743415843070,-159.48,0.000502,48]
[356907777,1743415843079,-8069.52753256,0.00050248,4]
[356907779,1743415843088,-192.99894221,0.00050258,120]
[356907781,1743415843098,-957.47,0.00050258,120]
[356907783,1743415843111,-500.0,0.00050258,120]
[356907785,1743415843120,-80656.66,0.00050258,7]
[356907787,1743415843129,-1873.16,0.00050258,120]
[356907789,1743415843139,-500.0,0.00050258,120]
[356907791,1743415843149,-500.0,0.00050258,120]
[356907793,1743415843159,-500.0,0.00050258,120]
[356907795,1743415843169,-500.0,0.00050258,120]
[356907797,1743415843178,-575.9,0.00050258,120]
[356907799,1743415843189,-500.0,0.00050258,120]
[356907801,1743415843199,-1273.29,0.00050258,120]
[356907803,1743415843208,-378.46047965,0.00050258,120]
[356907805,1743415843218,-500.0,0.00050258,120]
[356907807,1743415843227,-835.21,0.00050258,120]
[356907809,1743415843236,-1365.31,0.00050258,120]
[356907811,1743415843246,-1012.93,0.00050258,120]
[356907813,1743415843255,-2569.82,0.00050258,2]
[356907815,1743415843265,-500.0,0.00050258,120]
[356907817,1743415843274,-500.0,0.00050258,120]
[356907819,1743415843285,-500.0,0.00050258,120]
[356907821,1743415843294,-500.0,0.00050258,2]
[356907823,1743415843304,-1000.0,0.00050274,20]
[356907825,1743415843314,-338.64808787,0.0005033,120]
[356907827,1743415843323,-1000.0,0.00050411,20]
[356907829,1743415843333,-237.36,0.00050442,2]
[356907831,1743415843343,-957.47,0.00050532,120]
[356907833,1743415843353,-500.0,0.00050532,120]
[356907835,1743415843362,-80656.66,0.00050532,7]
[356907837,1743415843372,-1873.16,0.00050532,120]
[356907839,1743415843382,-500.0,0.00050532,120]
[356907841,1743415843392,-500.0,0.00050532,120]
[356907843,1743415843402,-500.0,0.00050532,120]
[356907845,1743415843411,-500.0,0.00050532,120]
[356907847,1743415843421,-575.9,0.00050532,120]
[356907849,1743415843430,-500.0,0.00050532,120]
[356907851,1743415843440,-1273.29,0.00050532,120]
[356907853,1743415843449,-500.0,0.00050532,120]
[356907855,1743415843459,-835.21,0.00050532,120]
[356907857,1743415843468,-1365.31,0.00050532,120]
[356907859,1743415843477,-1012.93,0.00050532,120]
[356907860,1743415843486,-2569.82,0.00050532,2]
[356907861,1743415843496,-500.0,0.00050532,120]
[356907862,1743415843505,-500.0,0.00050532,120]
[356907863,1743415843515,-500.0,0.00050532,120]
[356907864,1743415843525,-500.0,0.00050532,2]
[356907865,1743415843535,-1000.0,0.00050548,20]
[356907866,1743415843545,-338.64808789,0.00050586,120]
[356907867,1743415843554,-500.0,0.00050684,60]
[356907868,1743415843563,-1000.0,0.00050685,20]
[356907869,1743415843573,-15364.725,0.000507,120]
[356907870,1743415843582,-5768.71797289,0.00050799,2]
[356907871,1743415843591,-150.0,0.000508,120]
[356907872,1743415843605,-256.30801,0.000508,120]
[356907873,1743415843614,-77537.1,0.000508,2]
[356907874,1743415843624,-957.47,0.00050806,120]
[356907876,1743415843633,-500.0,0.00050806,120]
[356907878,1743415843643,-80656.66,0.00050806,7]
[356907880,1743415843652,-1873.16,0.00050806,120]
[356907882,1743415843662,-500.0,0.00050806,120]
[356907884,1743415843671,-500.0,0.00050806,120]
[356907886,1743415843681,-394.09871424,0.00050806,120]
[356907888,1743415843690,-500.0,0.00050806,120]
[356907890,1743415843699,-575.9,0.00050806,120]
[356907892,1743415843708,-500.0,0.00050806,120]
[356907894,1743415843718,-1273.29,0.00050806,120]
[356907896,1743415843727,-500.0,0.00050806,120]
[356907898,1743415843737,-835.21,0.00050806,120]
[356907900,1743415843746,-1365.31,0.00050806,120]
[356907902,1743415843755,-1012.93,0.00050806,120]
[356907904,1743415843765,-2569.82,0.00050806,2]
[356907906,1743415843775,-500.0,0.00050806,120]
[356907908,1743415843786,-500.0,0.00050806,120]
[356907910,1743415843795,-229.84597977,0.00050806,120]
[356907912,1743415843805,-500.0,0.00050806,2]
[356907914,1743415843814,-1000.0,0.00050822,20]
[356907916,1743415843825,-212.0,0.0005086,30]
[356907918,1743415843834,-4668.83979056,0.0005089,120]
[356907920,1743415843844,-1000.0,0.00050959,20]
[356907922,1743415843854,-50000.0,0.00051,51]
[356907924,1743415843863,-1008.0,0.00051,60]
[356907926,1743415843872,-250.0,0.00051,20]
[356907928,1743415843882,-476.85509975,0.00051,50]
[356907930,1743415843891,-200.0,0.00051077,2]
[356907932,1743415843901,-200.0,0.00051077,2]
[356907934,1743415843910,-200.0,0.00051077,2]
[356907936,1743415843922,-200.0,0.00051077,2]
[356907938,1743415843932,-200.0,0.00051077,2]
[356907940,1743415843941,-200.0,0.00051077,2]
[356907942,1743415843950,-200.0,0.00051077,2]
[356907944,1743415843959,-342.0,0.00051077,2]
[356907945,1743415843969,-957.47,0.0005108,120]
[356907947,1743415843978,-500.0,0.0005108,120]
[356907949,1743415843987,-80656.66,0.0005108,7]
[356907951,1743415843997,-1873.16,0.0005108,120]
[356907953,1743415844006,-500.0,0.0005108,120]
[356907955,1743415844015,-500.0,0.0005108,120]
[356907957,1743415844025,-500.0,0.0005108,120]
[356907959,1743415844035,-575.9,0.0005108,120]
[356907961,1743415844044,-500.0,0.0005108,120]
[356907963,1743415844054,-1273.29,0.0005108,120]
[356907965,1743415844063,-503.69904798,0.0005108,120]
[356907966,1743415844073,-835.21,0.0005108,120]
[356907967,1743415844082,-1365.31,0.0005108,120]
[356907968,1743415844091,-1012.93,0.0005108,120]
[356907969,1743415844102,-2569.82,0.0005108,2]
[356907970,1743415844115,-500.0,0.0005108,120]
[356907971,1743415844124,-500.0,0.0005108,120]
[356907973,1743415844135,-500.0,0.0005108,2]
[356907975,1743415844144,-1000.0,0.00051096,20]
[356907977,1743415844154,-12500.0,0.00051188,16]
[356907979,1743415844164,-12500.0,0.00051197,16]
[356907981,1743415844173,-12500.0,0.00051206,16]
[356907983,1743415844186,-12500.0,0.00051214,16]
[356907985,1743415844196,-12500.0,0.00051223,16]
[356907987,1743415844205,-500.0,0.00051232,60]
[356907989,1743415844215,-12500.0,0.00051232,16]
[356907991,1743415844224,-12500.0,0.00051232,16]
[356907993,1743415844233,-1000.0,0.00051233,20]
[356907995,1743415844242,-1065.0,0.000513,30]
[356907997,1743415844251,-957.47,0.00051354,120]
[356907999,1743415844261,-500.0,0.00051354,120]
[356908001,1743415844271,-80656.66,0.00051354,7]
[356908004,1743415844282,-1873.16,0.00051354,120]
[356908006,1743415844292,-500.0,0.00051354,120]
[356908007,1743415844301,-500.0,0.00051354,120]
[356908009,1743415844310,-500.0,0.00051354,120]
[356908011,1743415844320,-575.9,0.00051354,120]
[356908013,1743415844330,-500.0,0.00051354,120]
[356908015,1743415844339,-1273.29,0.00051354,120]
[356908018,1743415844349,-835.21,0.00051354,120]
[356908020,1743415844359,-1365.31,0.00051354,120]
[356908021,1743415844368,-1012.93,0.00051354,120]
[356908023,1743415844378,-2569.82,0.00051354,2]
[356908025,1743415844387,-500.0,0.00051354,120]
[356908027,1743415844397,-500.0,0.00051354,120]
[356908029,1743415844406,-500.0,0.00051354,2]
[356908031,1743415844415,-150.0,0.00051369,120]
[356908033,1743415844424,-1000.0,0.0005137,20]
[356908035,1743415844434,-150.0,0.00051397,30]
[356908037,1743415844444,-150.0,0.00051397,30]
[356908039,1743415844454,-153.61,0.00051397,30]
[356908041,1743415844464,-150.0,0.00051397,30]
[356908043,1743415844473,-150.0,0.00051397,30]
[356908045,1743415844482,-150.0,0.00051397,30]
[356908047,1743415844492,-1361.0,0.000515,14]
[356908049,1743415844502,-957.47,0.00051628,120]
[356908051,1743415844512,-500.0,0.00051628,120]
[356908053,1743415844522,-62792.74152045,0.00051628,7]
[356908059,1743415844563,-17863.91847955,0.00051628,7]
[356908061,1743415844574,-1873.16,0.00051628,120]
[356908063,1743415844584,-500.0,0.00051628,120]
[356908065,1743415844593,-500.0,0.00051628,120]
[356908067,1743415844602,-500.0,0.00051628,120]
[356908069,1743415844611,-575.9,0.00051628,120]
[356908071,1743415844621,-500.0,0.00051628,120]
[356908073,1743415844631,-1273.29,0.00051628,120]
[356908075,1743415844641,-835.21,0.00051628,120]
[356908077,1743415844650,-1365.31,0.00051628,120]
[356908079,1743415844660,-1012.93,0.00051628,120]
[356908080,1743415844670,-2569.82,0.00051628,2]
[356908081,1743415844680,-500.0,0.00051628,120]
[356908082,1743415844689,-500.0,0.00051628,120]
[356908083,1743415844699,-500.0,0.00051628,2]
[356908084,1743415844708,-8162.38141481,0.00051688,7]
[356908085,1743415844717,-279.12188021,0.00051688,7]
[356908086,1743415844726,-500.0,0.0005178,60]
[356908087,1743415844735,-4668.83979056,0.0005189,120]
[356908088,1743415844745,-4668.83979056,0.0005189,120]
[356908089,1743415844755,-160.11392448,0.000519,120]
[356908090,1743415844765,-186.11686099,0.000519,2]
[356908091,1743415844774,-521.0539502,0.000519,2]
[356908092,1743415844784,-154.88652522,0.000519,120]
[356908093,1743415844793,-12472.11564145,0.000519,2]
[356908094,1743415844803,-957.47,0.00051902,120]
[356908095,1743415844812,-500.0,0.00051902,120]
[356908096,1743415844822,-51365.06583105,0.00051902,7]
[356908097,1743415844834,-1496.82359876,0.00051902,7]
[356908098,1743415844850,-500.0,0.00049436,120]
[356908099,1743415844860,-319.39209121,0.00051902,7]
[356908100,1743415844872,-12209.23792569,0.00051902,7]
[356908101,1743415844884,-8542.713982,0.00051902,7]
[356908102,1743415844895,-1072.17574211,0.00051902,7]
[356908103,1743415844907,-3755.752,0.00051902,7]
[356908104,1743415844921,-1069.93371456,0.00051902,7]
[356908105,1743415844936,-825.56511462,0.00051902,7]
[356908106,1743415844947,-589.28681361,0.00051902,120]
[356908107,1743415845014,-296.21242944,0.00042,120]
[356908108,1743415845027,-4553.35757056,0.00042,120]
[356908109,1743415845038,-204.70597765,0.0004971,120]
[356908110,1743415845048,-1283.87318639,0.00051902,120]
[356908111,1743415845059,-500.0,0.00051902,120]
[356908113,1743415845165,-500.0,0.00051902,120]
[356908115,1743415845192,-500.0,0.00051902,120]
[356908116,1743415845201,-575.9,0.00051902,120]
[356908117,1743415845211,-500.0,0.00051902,120]
[356908118,1743415845221,-1273.29,0.00051902,120]
[356908119,1743415845230,-835.21,0.00051902,120]
[356908121,1743415845240,-1365.31,0.00051902,120]
[356908122,1743415845249,-1012.93,0.00051902,120]
[356908124,1743415845258,-2569.82,0.00051902,2]
[356908125,1743415845270,-500.0,0.00051902,120]
[356908126,1743415845279,-500.0,0.00051902,120]
[356908127,1743415845293,-548.09146561,0.00051902,2]
[356908128,1743415845302,-500.0,0.00051973,3]
[356908129,1743415845311,-4970.31070993,0.00052,52]
[356908130,1743415845322,-3019.96756858,0.00052,52]
[356908131,1743415845335,-4200.04995,0.00052,52]
[356908140,1743415845949,-500.0,0.00052,52]
[356908143,1743415845964,-1486.59111552,0.00052,52]
[356908145,1743415845975,-1711.87058023,0.00052,52]
[356908167,1743415846196,-500.0,0.00049162,120]
[356908170,1743415846207,-5370.15060979,0.00052,52]
[356908172,1743415846218,-12335.84939021,0.00052,52]
[356908174,1743415846230,-8167.0,0.00052,52]
[356908177,1743415846249,-150.0,0.00050248,4]
[356908179,1743415846258,-359.72500314,0.00052,52]
[356908181,1743415846269,-1389.23522606,0.00052,52]
[356908183,1743415846281,-835.8,0.00052,52]
[356908197,1743415846405,-2379.78830771,0.00052,52]
[356908523,1743415922822,-150.0,0.00026849,2]
[356908524,1743415955440,-150.0,0.00042,120]
[356908525,1743416283741,-151.16351891,0.00028192,12]
[356908526,1743416708417,3700.0,0.00015,2]
[356908528,1743416762025,-151.94441106,0.00014999,2]
[356908529,1743416843159,520.233519,0.00014849,2]
[356908531,1743416917690,-150.0,0.00014999,2]
[356908534,1743416917723,-300.0,0.00014999,2]
[356908535,1743416917756,-4292.71756569,0.00015,2]
[356908568,1743417031672,-381.22603053,0.00015,2]
[356908569,1743417031712,-370.75157903,0.00015,2]
[356908570,1743417031822,-274.58374848,0.00015,2]
[356908571,1743417031876,-294029.48044744,0.00015,2]
[356908572,1743417031987,-8268.68028938,0.00015,2]
[356908579,1743417037521,-9262.70681193,0.00015,2]
[356908583,1743417037579,-5122.70777717,0.00015,2]
[356908584,1743417037691,-120062.05813798,0.00015,2]
[356908585,1743417037747,-16324.8,0.00015,2]
[356908610,1743417039722,-300.0,0.00015,2]
[356908611,1743417039831,-10822.67097391,0.00015,2]
[356908612,1743417040097,-411.89456111,0.00015,2]
[356908613,1743417040111,-311553.39654777,0.00015,2]
[356908639,1743417043677,-362.76485203,0.00015,2]
[356908640,1743417043690,-4002.3379599,0.00015,2]
[356908641,1743417043702,-8571.84422266,0.00015,2]
[356908642,1743417043715,-32088.29437782,0.00015,2]
[356908643,1743417043728,-4751.10802384,0.00015,2]
[356908644,1743417043741,-4762.30987401,0.00015,2]
[356908660,1743417045776,-416.30793719,0.00015,2]
[356908661,1743417045836,-538.51326123,0.00015,2]
[356908662,1743417045892,-50534.00363221,0.00015,2]
[356908663,1743417045948,-7225.52539935,0.00015,2]
[356908671,1743417054949,-3711.0,0.00015,2]
[356908672,1743417062642,-153.95816816,0.00014999,2]
[356908673,1743417361667,350.0,0.00014949,12]
[356908674,1743417510160,527.92,0.000147,2]
[356908675,1743417524647,249.40583728,0.00014804,2]
[356908676,1743417561695,255.37332,0.00014804,12]
[356908677,1743417721935,350.0,0.00014924,12]
[356908678,1743417748774,152.91151117,0.00014591,2]
[356908679,1743417841816,350.0,0.00014911,12]
[356908680,1743417867045,255.37333,0.0002466,33]
[356908681,1743417867102,255.37333,0.0001716,17]
[356908682,1743417867170,255.37332,0.0001966,23]
[356908683,1743417983151,-178.9493,0.00014899,2]
[356908684,1743417988032,16278.0,0.0002,14]
[356908685,1743418172603,255.37333,0.0001838,20]
[356908686,1743418172650,255.37332,0.0002088,25]
[356908693,1743418231801,-2.03403332,0.00014899,2]
[356908694,1743418231812,-150.0,0.00014911,2]
[356908695,1743418231822,-150.0,0.00014957,2]
[356908696,1743418231831,-502.22565943,0.00014973,2]
[356908697,1743418231840,-500.0,0.00014973,2]
[356908698,1743418231849,-150.0,0.00014999,2]
[356908699,1743418231859,-5065.5087474,0.00015,2]
[356908700,1743418231906,-10000.0,0.00015,2]
[356908701,1743418231921,-1199.54019934,0.00015,2]
[356908702,1743418231935,-607.73276932,0.00015,2]
[356908703,1743418231962,-6076.13114338,0.00015,2]
[356908704,1743418231975,-2613.10872722,0.00015,2]
[356908705,1743418231987,-8191.88585287,0.00015,2]
[356908706,1743418232118,-1400.2024902,0.00015,2]
[356908737,1743418233972,-10000.0,0.00015,2]
[356908738,1743418234344,-10000.0,0.00015,2]
[356908739,1743418234809,-10000.0,0.00015,2]
[356908740,1743418235332,-10000.0,0.00015,2]
[356908741,1743418235847,-10000.0,0.00015,2]
[356908742,1743418236279,-10000.0,0.00015,2]
[356908743,1743418236595,-10000.0,0.00015,2]
[356908744,1743418237061,-10000.0,0.00015,2]
[356908745,1743418237541,-10000.0,0.00015,2]
[356908754,1743418237751,-321.33,0.00015,2]
[356908755,1743418237803,-700.65332309,0.00015,2]
[356908756,1743418237858,-6532.29512205,0.00015,2]
[356908757,1743418237899,-10000.0,0.00015,2]
[356908758,1743418237912,-2494.64714518,0.00015,2]
[356908759,1743418237927,-1745.247756,0.00015,2]
[356908760,1743418237939,-440.57910089,0.00015,2]
[356908761,1743418237951,-1880.99999999,0.00015,2]
[356908762,1743418238025,-252.90102083,0.00015,2]
[356908763,1743418238037,-627.61421486,0.00015,2]
[356908795,1743418238337,-10000.0,0.00015,2]
[356908831,1743418238674,-10000.0,0.00015,2]
[356908868,1743418239023,-10000.0,0.00015,2]
[356908903,1743418239383,-10000.0,0.00015,2]
[356908943,1743418239842,-10000.0,0.00015,2]
[356908962,1743418240020,-335433.11297874,0.00015,2]
[356908964,1743418240030,-1793.37229964,0.00015611,2]
[356908966,1743418240039,-155.52923662,0.00015911,2]
[356908968,1743418240049,-462.44191272,0.00015911,2]
[356908970,1743418240059,-500.0,0.00015911,2]
[356908973,1743418240068,-2343.61143343,0.00016289,2]
[356908975,1743418240079,-350.0,0.00016389,12]
[356908977,1743418240088,-350.0,0.00016389,12]
[356908979,1743418240097,-150.0,0.00016389,2]
[356908981,1743418240107,-350.0,0.00016389,12]
[356908983,1743418240116,-500.0,0.000176,2]
[356908985,1743418240125,-150.01,0.00017806,2]
[356908987,1743418240134,-53628.94049921,0.00019,2]
[356908989,1743418240143,-1793.37229963,0.00019656,2]
[356908991,1743418240153,-2343.61143342,0.00020259,2]
[356908993,1743418240163,-1000.0,0.00020452,2]
[356908995,1743418240172,-1000.0,0.00021391,2]
[356908997,1743418240181,-212.66443433,0.00021917,2]
[356908999,1743418240190,-200.0,0.00022182,2]
[356909001,1743418240199,-250.0,0.00022187,2]
[356909003,1743418240208,-416.48,0.00022451,2]
[356909005,1743418240218,-5292.57,0.00022508,2]
[356909007,1743418240227,-2767.7,0.00022628,2]
[356909009,1743418240236,-193.24,0.00022731,2]
[356909011,1743418240246,-1701.54,0.00022801,2]
[356909013,1743418240255,-250.01656051,0.00023079,2]
[356909015,1743418240265,-1793.37229963,0.00023702,2]
[356909017,1743418240274,-2343.61143342,0.00024229,2]
[356909019,1743418240283,-1000.0,0.00025682,2]
[356909021,1743418240293,-3.11,0.00026849,2]
[356909023,1743418240302,-161.57,0.00026849,2]
[356909025,1743418240311,-179.15,0.00026849,2]
[356909027,1743418240321,-1793.37229963,0.00027747,2]
[356909029,1743418240331,-2343.61143342,0.00028199,2]
[356909031,1743418240340,-1000.0,0.00028892,2]
[356909033,1743418240349,-1967.71042771,0.0003,2]
[356909035,1743418240359,-23900.0,0.0003036,2]
[356909037,1743418240368,-1500.0,0.00030471,5]
[356909039,1743418240377,-2154.52,0.0003105,2]
[356909056,1743418240534,-416.48,0.00031432,2]
[356909059,1743418240554,-299.17,0.0003169,2]
[356909061,1743418240563,-1793.37229963,0.00031793,2]
[356909064,1743418240573,-1000.0,0.00032102,2]
[356909066,1743418240583,-2343.61143342,0.00032169,2]
[356909069,1743418240591,-342.49141584,0.00032509,4]
[356909071,1743418240601,-173.97,0.00032932,120]
[356909073,1743418240610,-153.11,0.00033733,2]
[356909075,1743418240620,-299.17,0.00033954,2]
[356909077,1743418240630,-193.24,0.00034097,120]
[356909079,1743418240639,-1000.0,0.00035312,2]
[356909081,1743418240648,-1793.37229963,0.00035838,2]
[356909083,1743418240659,-2343.61143342,0.0003614,2]
[356909085,1743418240669,-299.17,0.00036218,2]
[356909087,1743418240679,-299.17,0.00038482,2]
[356909089,1743418240689,-1000.0,0.00038523,2]
[356909091,1743418240698,-527.92,0.00038525,52]
[356909093,1743418240708,-1793.37229963,0.00039884,15]
[356909095,1743418240718,-2343.61143342,0.0004011,15]
[356909097,1743418240727,-153.11,0.00040616,2]
[356909099,1743418240736,-299.17,0.00040745,2]
[356909101,1743418240746,-48052.66,0.00042,120]
[356909103,1743418240756,-582.0,0.000421,3]
[356909105,1743418240765,-299.17,0.00043009,2]
[356909107,1743418240775,-2000.0,0.00043445,10]
[356909110,1743418240785,-1793.37229963,0.00043929,15]
[356909112,1743418240795,-2343.61143342,0.0004408,15]
[356909114,1743418240805,-299.17,0.00045273,2]
[356909116,1743418240814,-152.0,0.00045672,3]
[356909118,1743418240823,-1088.81,0.000457,14]
[356909119,1743418240833,-19510.23165317,0.00046,120]
[356909122,1743418240846,-947.66428876,0.00046,120]
[356909124,1743418240858,-518.37168915,0.00046,120]
[356909129,1743418240895,-1285.05571944,0.00046,120]
[356909328,1743418242905,-12743.65719097,0.00046,120]
[356909405,1743418243797,-464.76347741,0.00046,120]
[356909406,1743418243813,-5269.72838599,0.00046,120]
[356909407,1743418243825,-2801.29996,0.00046,120]
[356909408,1743418243836,-1596.299985,0.00046,120]
[356909431,1743418245905,-856.2321508,0.00046,120]
[356909432,1743418245960,-373.49586585,0.00046,120]
[356909433,1743418245973,-3593.99479844,0.00046,120]
[356909434,1743418245983,-166.66,0.00046926,2]
[356909435,1743418245992,-153.11,0.000475,2]
[356909436,1743418246003,-299.17,0.00047537,2]
[356909437,1743418246016,-383.6858633,0.00047975,15]
[356909438,1743418246030,-1409.68643633,0.00047975,15]
[356909439,1743418246044,-559.4542598,0.00048,41]
[356909440,1743418246075,-547.84176427,0.00048,41]
[356909441,1743418246128,-253.52,0.00048,41]
[356909442,1743418246143,-813.85573094,0.00048,41]
[356909443,1743418246181,-2329.55927372,0.00048,41]
[356909444,1743418246235,-620.1702649,0.00048,41]
[356909445,1743418426385,327.75991305,0.00033509,120]
[356909446,1743418525928,153.99,0.00013699,2]
[356909447,1743418547607,-152.35,0.00041096,2]
[356909448,1743418560866,-1.64,0.00041096,2]
[356909449,1743418560889,-184.39,0.00042,120]
[356909450,1743418577580,-79.99,0.00042,120]
[356909451,1743418577604,-70.01,0.00042,120]
[356909452,1743418579322,-150.7605137,0.00042,120]
[356909453,1743418760024,179.23439303,0.000147,2]
[356909454,1743418808654,-150.0,0.00033507,30]
[356909460,1743419432011,-153.11,0.00026849,2]
[356909461,1743419432022,-252.99428048,0.00029534,12]
[356909462,1743419432065,-97.00571952,0.00029534,12]
[356909463,1743419432075,-150.0,0.00029534,2]
[356909464,1743419432084,-350.0,0.00030128,12]
[356909465,1743419432094,-150.0,0.00030128,2]
[356909466,1743419432104,-350.0,0.00033394,12]
[356909467,1743419432113,-150.0,0.00033394,2]